Cogmind - Beta 11 @@@ ROGUE MODE // 2022.04.14 @ 16:04:48 Player: Michael Result: Self-destructed Performance ------------- Evolutions (2) 1000 Regions Visited (5) 1000 Robots Destroyed (34) 170 Value Destroyed (792) 792 Prototype IDs (0) 0 Alien Tech Used (0) 0 Bonus (0) 0 TOTAL SCORE: 2962 Bonus ------- None Cogmind --------- Core Integrity 5/550 Matter 149/300 Energy 73/100 System Corruption 0% Temperature Cool (0) Movement Rolling (80) Location -8/Materials Parts ------- > --- POWER (1) -------- (None) > --- PROPULSION (2) --- Wheel > --- UTILITY (3) ------ Advanced Weight Redist. System Improved Signal Interpreter > --- WEAPON (5) ------- (None) > --- INVENTORY (5) ---- Light Treads Armored Wheel Large Storage Unit High-capacity Matter Pod (200) Improved Weapon Shielding Peak State ------------ > --- POWER ------------ Improved Ion Engine > --- PROPULSION ------- Light Treads Armored Wheel > --- UTILITY ---------- High-capacity Storage Unit Visual Processing Unit Improved Targeting Computer > --- WEAPON ----------- Assault Rifle Assault Rifle Light Assault Rifle Light Assault Rifle Missile Launcher > --- INVENTORY -------- Nuclear Core Nuclear Core Light Nuclear Core Light Nuclear Core Light Nuclear Core Reinforced Deuterium Engine Light Treads Light Treads Wheel Armored Wheel Armored Wheel Armored Wheel Medium Storage Unit Large Storage Unit High-capacity Matter Pod High-capacity Matter Pod Assault Rifle Light Cannon [Rating: 20] Favorites ----------- Power Light Nuclear Core Engine Ion Engine Power Core Light Nuclear Core Propulsion Armored Wheel Treads Light Treads Wheel Armored Wheel Hover Unit Improved Hover Unit Utility Visual Processing Unit Device Advanced Weight Redist. System Storage High-capacity Storage Unit Processor Visual Processing Unit Protection Improved Medium Armor Plating Weapon Assault Rifle Ballistic Gun Assault Rifle Ballistic Cannon Light Cannon Launcher Missile Launcher Build | -11 -10 -10 -10 -9 -8 ------- Run | Scr Mat Min Exi Min Mat Slots Evolved 4 | . . . . . 4 Power . | . . . . . . Propulsion . | . . . . . . Utility 1 | . . . . . 1 Weapon 3 | . . . . . 3 Parts Attached 68 | 6 21 2 4 . 35 Power 7 | 1 . 1 . . 5 Engine 2 | 1 . . . . 1 Core 5 | . . 1 . . 4 Reactor . | . . . . . . Propulsion 24 | 2 11 . 3 . 8 Treads 8 | . 5 . 1 . 2 Leg . | . . . . . . Wheel 15 | 2 6 . 2 . 5 Hover 1 | . . . . . 1 Flight . | . . . . . . Utility 13 | 1 3 . 1 . 8 Device 2 | . . . . . 2 Storage 5 | 1 2 . 1 . 1 Processor 4 | . 1 . . . 3 Hackware . | . . . . . . Protection 2 | . . . . . 2 Artifact . | . . . . . . Weapon 24 | 2 7 1 . . 14 Energy Gun . | . . . . . . Energy Cannon . | . . . . . . Ballistic Gun 16 | 2 6 1 . . 7 Ballistic Cannon 3 | . 1 . . . 2 Launcher 5 | . . . . . 5 Special Weapon . | . . . . . . Impact Weapon . | . . . . . . Slashing Weapon . | . . . . . . Piercing Weapon . | . . . . . . Special Melee Weapon . | . . . . . . Unidentified Prototypes . | . . . . . . Parts Lost 15 | . . . . . 15 Power 3 | . . . . . 3 Propulsion 4 | . . . . . 4 Utility 1 | . . . . . 1 Weapon 7 | . . . . . 7 Highest Loss Streak 8 | . . . . . 8 To Critical Strikes . | . . . . . . Average Slot Usage (%) 90 | . 97 100 100 100 74 Engine 7 | . 14 . . . 6 Core 4 | . . 13 14 14 2 Treads 6 | . 6 14 6 . 2 Wheel 17 | . 21 14 21 28 14 Storage 12 | . 14 14 14 14 9 Processor 13 | . 11 14 14 14 16 Ballistic Gun 19 | . 24 14 14 14 18 Ballistic Cannon 6 | . 3 14 14 14 2 Naked Turns . | . . . . . . Heaviest Build 59 | 13 30 30 49 49 59 Greatest Support 33 | 20 24 12 24 24 33 Greatest Overweight (x) 4 | . 2 2 2 2 4 Average Overweight (x) 1 | . . 2 2 2 2 Largest Inventory Capacity 20 | 8 15 15 20 20 20 Average Capacity 15 | 6 9 15 17 20 19 Most Carried 19 | 4 11 14 17 17 19 Average Carried 12 | 2 8 13 15 17 15 Final Capacity 20 | 8 15 15 20 20 5 Final Carried 17 | 4 11 13 17 17 5 Class Distribution -------------------- 85% | Mutant 7% | Gunner 4% | Scavenger-Gunner Dominant Class ---------------- Mutant | -10/Materials Mutant | -10/Mines Mutant | -10/Exiles Mutant | -9/Mines Mutant | -8/Materials Resources | -11 -10 -10 -10 -9 -8 ----------- Run | Scr Mat Min Exi Min Mat Matter Collected 1441 | 249 409 334 75 . 374 Remotely . | . . . . . . Salvage Created 985 | . 407 301 . . 277 Parts 74 | . 29 13 . . 32 Haulers Intercepted 1 | . . . . . 1 Recyclers Shooed 5 | . 1 2 . 1 1 Parts Field Recycled . | . . . . . . Retrieved Matter . | . . . . . . Parts Self-Destructed . | . . . . . . Prevented . | . . . . . . Kills | -11 -10 -10 -10 -9 -8 ------- Run | Scr Mat Min Exi Min Mat Combat Hostiles Destroyed 24 | . 9 9 . . 6 Guns 13 | . 8 3 . . 2 Cannons 7 | . 1 6 . . . AOE 4 | . . . . . 4 Classes Destroyed 9 | . 4 . . . 5 Worker 1 | . . . . . 1 Builder 3 | . . . . . 3 Hauler 1 | . . . . . 1 Recycler 3 | . 2 1 . . . Watcher 2 | . 2 . . . . Swarmer 10 | . 6 3 . . 1 Grunt 11 | . 3 6 . . 2 Sentry 1 | . . . . . 1 Specialist 2 | . . . . . 2 Best Kill Streak 5 | . 4 3 . . 5 Combat Bots Only 4 | . 4 3 . . 3 Max Kills in Single Turn 2 | . 1 1 . . 2 Gunslinging . | . . . . . . Exploded 2 | . . . . . 2 Melee . | . . . . . . Uniques/NPCs Destroyed . | . . . . . . Combat | -11 -10 -10 -10 -9 -8 -------- Run | Scr Mat Min Exi Min Mat Damage Taken 2680 | . 409 303 . . 1968 Core 650 | . 64 41 . . 545 Absorbed by Shields . | . . . . . . Redirected to Shielding 11 | . . . . . 11 Core Remaining (%) 79 | 100 . . . 58 . Volleys Fired 101 | 1 38 31 . 1 30 Largest 4 | 2 2 2 . 2 4 Hottest 80 | 40 55 55 . 55 80 Shots Fired 197 | 2 76 62 . 2 55 Gun 152 | 2 74 31 . 1 44 Cannon 34 | . 2 31 . 1 . Launcher 11 | . . . . . 11 Special . | . . . . . . Kinetic 186 | 2 76 62 . 2 44 Thermal . | . . . . . . Explosive 11 | . . . . . 11 Electromagnetic . | . . . . . . Robot Hit Streak 15 | 1 12 14 . 1 15 Robot Miss Streak 4 | 1 4 2 . 1 2 Penetration Max . | . . . . . . Secondary Targets 2 | . 2 . . . . Max Gunslinging Chain 1 | . 1 . . . . Shots Hit Robots 135 | 1 49 45 . 1 39 Core Hits 65 | 1 19 19 . . 26 Critical Kills . | . . . . . . Critical Parts Destroyed 1 | . 1 . . . . Critical Strikes 2 | . 1 1 . . . Destroy 1 | . 1 . . . . Blast 1 | . . 1 . . . Melee Attacks . | . . . . . . Impact . | . . . . . . Slashing . | . . . . . . Piercing . | . . . . . . Sneak Attacks . | . . . . . . Combat Hostiles . | . . . . . . Follow-up Attacks . | . . . . . . Damage Inflicted 2623 | 21 564 662 . 17 1359 Guns 1115 | 21 531 228 . . 335 Cannons 484 | . 33 434 . 17 . Explosions 1024 | . . . . . 1024 Melee . | . . . . . . Ramming . | . . . . . . Kinetic 1599 | 21 564 662 . 17 335 Thermal . | . . . . . . Explosive 1024 | . . . . . 1024 Electromagnetic . | . . . . . . Impact . | . . . . . . Slashing . | . . . . . . Piercing . | . . . . . . Highest Corruption . | . . . . . . Average Corruption . | . . . . . . Corruption Purged . | . . . . . . Corruption Blocked . | . . . . . . Overload Shots . | . . . . . . Overflow Damage 66 | . . 12 . . 54 Projectiles 12 | . . 12 . . . Explosions 54 | . . . . . 54 Melee . | . . . . . . Knockbacks 3 | . 1 2 . . . Impact . | . . . . . . Kinetic 3 | . 1 2 . . . Secondary . | . . . . . . Self-Inflicted Damage . | . . . . . . Shots . | . . . . . . Rammed . | . . . . . . Targets Rammed . | . . . . . . Kicked . | . . . . . . Crushed . | . . . . . . Highest Temperature 123 | . 34 123 . 18 42 Average Temperature 26 | . 11 39 . 13 11 Received Heat Transfer 1086 | . 123 135 . . 828 Siege Activations . | . . . . . . Robots Corrupted . | . . . . . . Combat Hostiles . | . . . . . . Parts Fried . | . . . . . . Impact Corruptions . | . . . . . . Robots Melted . | . . . . . . Combat Hostiles . | . . . . . . Parts Melted . | . . . . . . Heat Transferred . | . . . . . . Parts Sabotaged . | . . . . . . Parts Stolen . | . . . . . . Parts Stripped . | . . . . . . Power Chain Reactions . | . . . . . . Missiles Intercepted . | . . . . . . Alert | -11 -10 -10 -10 -9 -8 ------- Run | Scr Mat Min Exi Min Mat Peak Influence 250 | . 195 250 . . 245 Initial 17 | . . 17 . . . Average 104 | . 111 125 . . 102 Maximum Alert Level 1 | . . 1 . . 1 Low Security (%) 94 | 100 100 82 . 100 94 Level 1 5 | . . 17 . . 5 Level 2 . | . . . . . . Level 3 . | . . . . . . Level 4 . | . . . . . . Level 5 . | . . . . . . High Security . | . . . . . . Max Security . | . . . . . . Squads Dispatched 4 | . . 1 . . 3 Investigation 1 | . . 1 . . . Extermination . | . . . . . . Reinforcement 2 | . . . . . 2 Assault . | . . . . . . Garrison 1 | . . . . . 1 Intercept . | . . . . . . Searches Triggered . | . . . . . . Construction Impeded . | . . . . . . Haulers Reinforced . | . . . . . . Active Scanning Responses . | . . . . . . Cargo Convoy Interrupts . | . . . . . . Stealth | -11 -10 -10 -10 -9 -8 --------- Run | Scr Mat Min Exi Min Mat Distress Signals 2 | . . . . . 2 Communications Jammed . | . . . . . . Distress Signals . | . . . . . . Times Spotted 52 | . 19 9 . . 24 Peak Tracking Total 7 | . 5 3 . . 7 Tactical Retreats 6 | . 2 . . . 4 Traps | -11 -10 -10 -10 -9 -8 ------- Run | Scr Mat Min Exi Min Mat Traps Triggered 3 | . 1 . . . 2 Indirectly . | . . . . . . Trap Hack Attempts . | . . . . . . Triggered . | . . . . . . Disarmed . | . . . . . . Reprogrammed . | . . . . . . Reused . | . . . . . . Traps Extracted . | . . . . . . Installed . | . . . . . . Triggered . | . . . . . . Exploded 3 | . . . . . 3 Machines | -11 -10 -10 -10 -9 -8 ---------- Run | Scr Mat Min Exi Min Mat Machines Disabled . | . . . . . . Max in Single Turn . | . . . . . . Machines Sabotaged . | . . . . . . Garrisons Compromised . | . . . . . . Overloaded Fab Kills . | . . . . . . Hacking | -11 -10 -10 -10 -9 -8 --------- Run | Scr Mat Min Exi Min Mat Machines Accessed 13 | . 7 2 1 . 3 Terminals 8 | . 6 1 . . 1 Fabricators . | . . . . . . Repair Stations . | . . . . . . Recycling Units 2 | . 1 . . . 1 Scanalyzers 1 | . . . . . 1 Garrison Access . | . . . . . . Total Hacks 24 | . 11 3 1 . 9 Successful 15 | . 5 3 1 . 6 Failed 9 | . 6 . . . 3 Catastrophic . | . . . . . . Database Lockouts . | . . . . . . Manual 3 | . 2 . . . 1 Terminals 14 | . 10 2 . . 2 Fabricators . | . . . . . . Repair Stations . | . . . . . . Recycling Units 4 | . 1 . . . 3 Scanalyzers 4 | . . . . . 4 Garrison Access . | . . . . . . Terminal Hacks 8 | . 3 3 1 . 1 Record 1 | . . . 1 . . Open Door 1 | . . 1 . . . Level Access Points 1 | . . 1 . . . Branch Access Points 1 | . 1 . . . . Dispatch Records 1 | . 1 . . . . Hauler Manifests 1 | . 1 . . . . Registered Components 1 | . . . . . 1 Zone Layout 1 | . . 1 . . . Fabricator Hacks . | . . . . . . Repair Station Hacks . | . . . . . . Recycling Unit Hacks 1 | . 1 . . . . Retrieve Components 1 | . 1 . . . . Scanalyzer 4 | . . . . . 4 Insert Component 2 | . . . . . 2 Analyze 2 | . . . . . 2 Garrison Access Hacks . | . . . . . . Unauthorized Hacks 2 | . 1 . . . 1 Terminals 2 | . 1 . . . 1 Assimilate 1 | . 1 . . . . Botnet 1 | . . . . . 1 Fabricators . | . . . . . . Repair Stations . | . . . . . . Recycling Units . | . . . . . . Scanalyzers . | . . . . . . Garrison Access . | . . . . . . Data Cores Recovered . | . . . . . . Used . | . . . . . . Hacking Detections 4 | . 3 . . . 1 Full Trace Events . | . . . . . . Feedback Events . | . . . . . . Feedback Blocked . | . . . . . . Robot Schematics Acquired . | . . . . . . Robots Built . | . . . . . . Authchips . | . . . . . . Time . | . . . . . . Total Robot Build Rating . | . . . . . . Part Schematics Acquired 2 | . . . . . 2 Parts Built . | . . . . . . Authchips . | . . . . . . Time . | . . . . . . Total Part Build Rating . | . . . . . . Parts Repaired . | . . . . . . Time . | . . . . . . Parts Recycled . | . . . . . . Recycled Matter . | . . . . . . Retrieved Matter . | . . . . . . Retrieved Components 3 | . 3 . . . . Parts Scanalyzed 2 | . . . . . 2 Part Schematics Acquired 2 | . . . . . 2 Parts Damaged 1 | . . . . . 1 Bothacking | -11 -10 -10 -10 -9 -8 ------------ Run | Scr Mat Min Exi Min Mat Used RIF Installer . | . . . . . . Robots Hacked . | . . . . . . Non-combat . | . . . . . . Combat . | . . . . . . Robot Hacks Applied . | . . . . . . Relay Couplers Released . | . . . . . . Fabnet Peak Effective % . | . . . . . . Robots Rewired . | . . . . . . Allies Hacked . | . . . . . . Hacks Repelled . | . . . . . . Allies | -11 -10 -10 -10 -9 -8 -------- Run | Scr Mat Min Exi Min Mat Total Allies 1 | . 1 . . . . Largest Group 1 | . 1 . . . . Highest-Rated Group 10 | . 10 . . . . Highest-Rated Ally 10 | . 10 . . . . Total Orders . | . . . . . . Ally Attacks . | . . . . . . Total Damage . | . . . . . . Kills . | . . . . . . Allies Corrupted . | . . . . . . Allies Melted . | . . . . . . Intel | -11 -10 -10 -10 -9 -8 ------- Run | Scr Mat Min Exi Min Mat Robot Analysis Total . | . . . . . . Derelict Logs Recovered 2 | . . 1 . 1 . Drone Launches . | . . . . . . Drone Recoveries . | . . . . . . Exploration | -11 -10 -10 -10 -9 -8 ------------- Run | Scr Mat Min Exi Min Mat Turns Passed 2526 | 40 857 464 215 93 857 Spaces Moved 1848 | 34 756 293 170 76 519 Core 13 | 12 . . . . 1 Treads . | . . . . . . Legs . | . . . . . . Wheels 1833 | 22 756 293 170 76 516 Hover 2 | . . . . . 2 Flight . | . . . . . . Fastest Speed 50 | 50 80 120 120 120 65 Average Speed 107 | 69 88 120 120 120 124 Slowest Speed 150 | 80 120 120 120 120 150 Overloaded Moves . | . . . . . . Propulsion Burnouts . | . . . . . . Robots Hopped . | . . . . . . Cave-ins Triggered . | . . . . . . Exploration Rate (%) 49 | 3 98 65 57 25 50 Regions Visited 5 Branch Regions 3 Pre-discovered Areas 2 | . . . 1 1 . Known Exits Taken 1 | . 1 . . . . Unknown Exits Taken 4 | 1 . 1 1 1 . Scrap Searched 2 | . . 2 . . . Spaces Dug 6 | . . . . . 6 Terrain Destroyed 64 | . . . . . 64 Melee . | . . . . . . Projectile . | . . . . . . AOE 64 | . . . . . 64 Terrain Rammed . | . . . . . . Walls Destroyed . | . . . . . . Machines Disabled . | . . . . . . Actions | -11 -10 -10 -10 -9 -8 --------- Run | Scr Mat Min Exi Min Mat Total 2209 | 45 873 348 180 76 687 Wait 129 | . 40 17 . . 72 Move 1843 | 33 755 292 169 75 519 Hop . | . . . . . . Pick Up 32 | 5 10 2 5 . 10 Fast Attach 18 | 5 1 2 . . 10 Attach 15 | 1 . . . . 14 Detach 8 | . . 2 . . 6 Swap 35 | . 20 . 4 . 11 Drop 28 | . 9 2 2 . 15 Fire 101 | 1 38 31 . 1 30 Melee . | . . . . . . Ram . | . . . . . . Kick . | . . . . . . Crush . | . . . . . . Escape Stasis . | . . . . . . Rewire . | . . . . . . Trap . | . . . . . . Miscellaneous . | . . . . . . Route ------- -11/Scrapyard -10/Materials (discovered 5 exits: *Mat x3 / *Min x2) -10/Mines (discovered 3 exits: *Mat x2 / *Exi) -10/Exiles (discovered 2 exits: [*Min x2]) -9/Mines -8/Materials (discovered 1 exit: Sto) History --------- Turn | Location | Event 6 | -11/Scrapyard | Discovered new exit (range 14) 41 | -11/Scrapyard | Entered Materials 75 | -10/Materials | Discovered new exit (range 11) 181 | -10/Materials | Identified exit to Mines 262 | -10/Materials | Discovered new exit (range 5) 304 | -10/Materials | Build established: Mutant 553 | -10/Materials | Discovered new exit (range 14) 811 | -10/Materials | Discovered new exit (range 7) 898 | -10/Materials | Entered Mines 913 | -10/Mines | Met a Derelict bent on vengeance 1067 | -10/Mines | Met a Derelict shopkeep closing up shop 1119 | -10/Mines | Identified exit to Materials 1330 | -10/Mines | Learned location of 1 exit from Materials 1357 | -10/Mines | Deemed a non-threat by the Exiles lab entrance 1357 | -10/Mines | Discovered new exit (range 5) 1362 | -10/Mines | Entered Exiles 1386 | -10/Exiles | Discovered new exit (range 17) 1399 | -10/Exiles | Met 8R-AWN 1418 | -10/Exiles | Met EX-HEX 1482 | -10/Exiles | Met EX-DEC 1505 | -10/Exiles | Learned location of Zion (-7) 1565 | -10/Exiles | Discovered new exit (range 12) 1577 | -10/Exiles | Entered Mines 1605 | -9/Mines | Assembled infested the area 1610 | -9/Mines | Assisted by a Guerilla fighting off Assembled 1665 | -9/Mines | Discovered new exit (range 4) 1670 | -9/Mines | Entered Materials 1670 | -8/Materials | Evolved 4 slots: Utility x1, Weapon x3 1671 | -8/Materials | Identified exit to Storage 2128 | -8/Materials | Lost 7 parts (1n1u5w) 2429 | -8/Materials | Garrison activated, responded to threat 2495 | -8/Materials | Core integrity fell below 50% 2522 | -8/Materials | Core integrity fell below 20% 2527 | -8/Materials | Self-destructed Last Messages --------------- 02490_ M-13 Machinist fits Backup Power I on R-06 Scavenger. 02492_ Arm. Wheel destroyed. 02493_ Dropped Lgt. Treads. 02493_ Dropped Arm. Wheel. 02494_ Dropped Imp. Salvage Targeting Computer. 02494_ Dropped Weapon Cycler. 02505_ Missile Launcher destroyed. 02508_ Dropped Wheel. 02508_ Dropped Imp. Medium Armor Plating. 02511_ Discarded Visual Processing Unit. 02514_ Acquired Imp. Hover Unit. 02516_ Lgt. Nuclear Core destroyed. 02516_ Dropped Imp. Medium Armor Plating. 02518_ Critical hit (Burn: +37). 02518_ Imp. Hover Unit destroyed. 02518_ Arm. Wheel destroyed. 02522_ Dropped Hcp. Storage Unit. 02522_ Dropped Med. Storage Unit. 02524_ Lgt. Nuclear Core destroyed. 02525_ Y-45 Defender destroyed. Map ----- +----------------------------------------------------+ | ????????????????????????#[[ #??# #??????? | | ?????????????????############ #??# #??????? | | ?????????????????# #### #??# ! #??????? | | ?????????????????# + #??# #??????? | | ?????????????????# #### #??# #??????? | | ?????????????????########???# #### #??????? | | ????????????????????????????# + #??????? | | ????????????????????????????# ###########??????? | | ????????????????????????????# #????????????????? | | ????????????????????????????# #########????????? | | ????????????????????????????/ ? | | ????????????????????????????# #########????????? | | ????????????????????????????# #????????????????? | | ????????????????????????????# #????????????????? | | ????????????????????????????# #????????????????? | | ????????????????????????????# ########?????????? | | ????????????????????######### # = #?????????? | | ????????????????????#! ! # + ##????????? | | ????????????????????#=! !g!# # "" ! #????????? | | ????????????????????#!!! = + "Y ##????????? | | ????????????????????#!!!!gg # "" !#?????????? | | ????????????????????#!!! =* Y # #?????????? | | ????????????????????#####[ Y ########?????????? | | ????????????????????##### #????????????????? | | ????????????????????# """ ## #????????????????? | | ????????????????????# "R"@ ## #????????????????? | | ????????????????????# " " # #????????????????? | | ????????????????????# ## #????????????????? | | ????????????????????# ## #????????????????? | | ????????????????????# ## #????????????????? | | ????????????????????##+#+### ????????????????? | | ???????????????????????????? ????????????????? | | ???????????????????????????? ????????????????? | | ???????????????????????????? ????????????????? | | ???????????????????????????# #???????????????? | | ???????????????????????????#######???????????????? | | ?????????????????????????????????????????????????? | | ?????????????????????????????????????????????????? | | ?????????????????????????????????????????????????? | | ?????????????????????????????????????????????????? | | ?????????????????????????????????????????????????? | | | | | | | | | | | | | | | | | | | +----------------------------------------------------+ Best States ------------- Heat Dissipation 31 Energy Generation 14 Energy Capacity 265 Matter Stores 300 Matter Capacity 300 Sight Range 18 Terrain Scan Density 10 Additional Mass Support 9 Armor Coverage 225 Weapon Shielding 66 Evasion (%) 44 Targeting Accuracy 6 Recoil Reduction 2 Salvage Targeting 2 Item Schematics ----------------- Arm. Wheel | -8/Materials | Scanalyzed Lgt. Nuclear Core | -8/Materials | Scanalyzed Robot Schematics ------------------ None Fabricated ------------ Nothing Alien Tech Used ----------------- None Achievements -------------- None Challenges ------------ None Game ------ Seed ArmageddonBiomechanicalDrive Manual? 0 Play Time 00:33:16 Cumulative 342.1 hours Start 2022.04.14 @ 10:02:36 End 2022.04.14 @ 16:04:48 Sessions 1 Manual Loads 0 Difficulty Rogue Special Mode None Game No. 142 Rogue 119 Adventurer 23 Explorer 0 Win Type - Total 1 Types 1/0/0/0/0/0/0/0/0 Lore% 41 Gallery% 55 Achievement% 41 Wizard Run 0 Options --------- ASCII 0 Keyboard 1 Movement Vi Keybinds 0 Fullscreen 1 Font 12/Tallcaps Map View 83x54 Tactical HUD 1 Map Filters NONE Filters NONE Steam 0 RUN: 6e89ca8d-70b9-47fb-88e7-c2d4252f847b